bitfinex/quotes_ETHUSD_20240915
["timestamp","ask_amount","ask_price","bid_price","bid_amount"]
[1726358401483,1.76833341,2423.6,2423.5,4.14408271]
[1726358401950,2.5174807,2423.8,2423.5,4.14408271]
[1726358402137,0.0392807,2423.8,2423.6,0.93633782]
[1726358402344,1.80761411,2423.8,2423.5,3.23342304]
[1726358402565,1.80761411,2423.8,2423.6,2.34085359]
[1726358402869,1.80761411,2423.8,2423.7,0.93625953]
[1726358403072,4.28581411,2423.8,2423.7,0.93625953]
[1726358403283,4.28581411,2423.8,2423.5,1.80323816]
[1726358403480,4.28581411,2423.8,2423.6,2.34084908]
[1726358403664,4.28581411,2423.8,2423.5,1.80323816]
[1726358403854,4.28581411,2423.8,2423.6,2.34098245]
[1726358404067,4.28581411,2423.8,2423.5,1.80323816]
[1726358404379,4.28581411,2423.8,2423.6,2.34092232]
[1726358404587,4.28581411,2423.8,2423.5,0.86691512]
[1726358404784,4.28581411,2423.8,2423.6,2.34097875]
[1726358404981,4.28581411,2423.8,2423.5,0.86691512]
[1726358405152,4.28581411,2423.8,2423.6,2.3409719]
[1726358405483,4.28581411,2423.8,2423.5,0.86691512]
[1726358405793,4.28581411,2423.8,2423.6,2.3409736]
[1726358405959,4.28581411,2423.8,2423.5,0.86691512]
[1726358406144,4.28581411,2423.8,2423.6,2.34098682]
[1726358406344,4.28581411,2423.8,2423.5,0.86691512]
[1726358406550,4.28581411,2423.8,2423.6,2.34101903]
[1726358406799,4.28581411,2423.8,2423.5,0.86691512]
[1726358407004,4.28581411,2423.8,2423.6,2.3409931]
[1726358407295,4.28581411,2423.8,2423.5,0.86691512]
[1726358407450,4.28581411,2423.8,2423.6,2.3410067]
[1726358407646,4.28581411,2423.8,2423.5,0.86691512]
[1726358407901,4.28581411,2423.8,2423.6,2.3410323]
[1726358408051,4.28581411,2423.8,2423.5,0.86691512]
[1726358408253,4.28581411,2423.8,2423.6,2.34101117]
[1726358408489,4.28581411,2423.8,2423.7,0.94971024]
[1726358409463,4.28581411,2423.8,2423.5,0.86691512]
[1726358409665,4.28581411,2423.8,2423.6,2.37433288]
[1726358409866,4.28581411,2423.8,2423.7,0.94973315]
[1726358411690,1.80761411,2423.8,2423.7,0.94973315]
[1726358412182,0.0392807,2423.8,2423.7,2.37431506]
[1726358412397,0.0392807,2423.8,2423.7,2.37428045]
[1726358415491,0.0392807,2423.8,2423.7,3.9250624]
[1726358415798,1.80761411,2423.8,2423.7,6.25413457]
[1726358416002,1.80761411,2423.8,2423.7,4.15047101]
[1726358416162,0.0392807,2423.8,2423.7,4.15047101]
[1726358416692,0.0392807,2423.8,2423.7,7.34632872]
[1726358416899,0.0392807,2423.8,2423.7,8.06372947]
[1726358417194,0.0392807,2423.8,2423.7,8.05859287]
[1726358417690,0.0392807,2423.8,2423.7,7.34119212]
[1726358420032,4.22701411,2423.8,2423.7,6.62377883]
[1726358420195,4.22701411,2423.8,2423.7,3.61065574]
[1726358420385,4.22701411,2423.8,2423.7,3.2357453]
[1726358420584,4.22701411,2423.8,2423.7,3.61068179]
[1726358422024,4.22701411,2423.8,2423.7,1.24153794]
[1726358422227,4.22701411,2423.8,2423.7,3.61038734]
[1726358422397,4.22701411,2423.8,2423.7,3.23545085]
[1726358422729,4.22701411,2423.8,2423.7,3.61038279]
[1726358423099,4.22701411,2423.8,2423.7,3.6103764]
[1726358424831,4.22701411,2423.8,2423.7,3.23545085]
[1726358425690,4.22701411,2423.8,2423.7,2.3688494]
[1726358426014,4.22701411,2423.8,2423.7,0.94753976]
[1726358426531,4.22701411,2423.8,2423.7,2.36888156]
[1726358426898,4.22701411,2423.8,2423.6,0.86660145]
[1726358427230,1.80761411,2423.8,2423.7,0.947565]
[1726358427437,1.80761411,2423.8,2423.7,2.36903518]
[1726358429200,1.80761411,2423.8,2423.7,0.947565]
[1726358429401,1.80761411,2423.8,2423.7,2.36909526]
[1726358429601,1.80761411,2423.8,2423.7,0.947565]
[1726358429935,1.80761411,2423.8,2423.7,2.3690795]
[1726358430167,1.80761411,2423.8,2423.7,2.36906411]
[1726358430433,1.80761411,2423.8,2423.7,0.947565]
[1726358430642,4.22701411,2423.8,2423.7,0.947565]
[1726358432011,1.80761411,2423.8,2423.7,2.36927132]
[1726358432929,0.0392807,2423.8,2423.7,3.38269087]
[1726358436020,0.0392807,2423.8,2423.7,7.55002232]
[1726358436752,0.0392807,2423.8,2423.7,7.5497215]
[1726358438753,0.0392807,2423.8,2423.7,6.68312005]
[1726358440703,1.80761411,2423.8,2423.7,6.68312005]
[1726358440908,1.80761411,2423.8,2423.7,3.23557195]
[1726358441227,1.80761411,2423.8,2423.7,2.3689705]
[1726358444148,1.80761411,2423.8,2423.7,2.3691871]
[1726358444538,1.80761411,2423.8,2423.7,5.6699171]
[1726358450859,1.80761411,2423.8,2423.7,2.3691871]
[1726358456567,1.80761411,2423.8,2423.7,2.37014508]
[1726358460765,1.80761411,2423.8,2423.7,2.37023592]
[1726358465044,1.80761411,2423.8,2423.7,2.37049958]
[1726358465253,2.83732211,2423.8,2423.7,2.37064124]
[1726358465552,0.0392807,2423.8,2423.7,2.37064124]
[1726358465763,0.0392807,2423.8,2423.7,3.23724269]
[1726358467143,0.0392807,2423.8,2423.7,2.37064124]
[1726358468607,0.0392807,2423.8,2423.7,3.23724269]
[1726358468924,0.0392807,2423.8,2423.7,2.37064124]
[1726358469815,0.0392807,2423.8,2423.7,2.37113895]
[1726358472446,0.0392807,2423.8,2423.7,3.2377404]
[1726358472617,2.4068807,2423.8,2423.7,2.37113895]
[1726358473747,2.32324996,2423.8,2423.7,2.37113895]
[1726358474434,4.09158337,2423.8,2423.7,2.37113895]
[1726358475711,4.09158337,2423.8,2423.7,2.37438283]
[1726358475915,4.09158337,2423.8,2423.7,2.37439553]
[1726358476455,4.09158337,2423.8,2423.7,2.37435816]
[1726358476811,4.09158337,2423.8,2423.7,0.94845558]
[1726358478820,9.05186675,2423.8,2423.5,0.86660145]
[1726358479053,2.9137,2423.7,2423.6,2.37647735]
[1726358479357,2.9137,2423.7,2423.6,0.95059094]
[1726358479557,2.9137,2423.7,2423.6,2.37653993]
[1726358479860,2.9137,2423.7,2423.6,2.3763289]
[1726358480234,4.68203341,2423.7,2423.6,2.3763289]
[1726358482027,4.68203341,2423.7,2423.6,2.37615929]
[1726358482738,4.68203341,2423.7,2423.6,0.95053156]
[1726358483784,0.55,2423.8,2423.6,0.95053156]
[1726358483972,0.55,2423.8,2423.4,6.50914145]
[1726358484174,0.55,2423.8,2423.5,3.15691524]
[1726358484385,0.55,2423.8,2423.6,0.95038553]
[1726358484612,0.55,2423.8,2423.4,6.50914145]
[1726358484783,0.55,2423.8,2423.5,2.37593525]
[1726358484967,0.55,2423.8,2423.6,0.9503741]
[1726358485167,0.55,2423.8,2423.4,6.50914145]
[1726358485411,0.55,2423.8,2423.5,2.37596188]
[1726358485615,0.55,2423.8,2423.6,0.95038475]
[1726358485909,0.55,2423.8,2423.4,7.88383072]
[1726358486107,0.55,2423.8,2423.5,2.37601255]
[1726358486296,0.55,2423.8,2423.6,0.95040502]
[1726358486493,0.55,2423.8,2423.4,7.88383072]
[1726358486673,0.55,2423.8,2423.5,2.37593375]
[1726358486871,0.55,2423.8,2423.6,0.9503735]
[1726358487107,0.55,2423.8,2423.4,6.50914145]
[1726358487313,0.55,2423.8,2423.5,2.37592946]
[1726358487476,0.55,2423.8,2423.6,0.95037178]
[1726358487847,0.55,2423.8,2423.4,6.50914145]
[1726358487973,0.55,2423.8,2423.5,2.37587303]
[1726358488175,0.55,2423.8,2423.6,0.95034921]
[1726358488374,0.55,2423.8,2423.4,7.79362678]
[1726358488582,0.55,2423.8,2423.5,2.37593141]
[1726358488792,0.55,2423.8,2423.6,0.95035055]
[1726358489097,0.55,2423.8,2423.5,0.90939995]
[1726358489413,0.55,2423.8,2423.6,2.37581054]
[1726358489622,0.55,2423.8,2423.5,1.7760014]
[1726358489817,1.76833341,2423.7,2423.6,2.37574291]
[1726358490318,2.31833341,2423.7,2423.6,2.37574291]
[1726358490814,2.31833341,2423.7,2423.6,0.95029716]
[1726358491016,4.66143341,2423.7,2423.6,0.95029716]
[1726358494525,4.66143341,2423.7,2423.6,0.95029283]
[1726358494727,4.66143341,2423.7,2423.6,0.95026977]
[1726358495103,4.66143341,2423.7,2423.4,4.16774145]
[1726358495298,2.8931,2423.7,2423.5,2.3756769]
[1726358495516,1.76833341,2423.6,2423.4,0.86660145]
[1726358495700,1.76833341,2423.6,2423.5,2.37573956]
[1726358497629,1.76833341,2423.6,2423.5,0.95029582]
[1726358497630,4.71663341,2423.6,2423.5,0.95029582]
[1726358497802,2.3983,2423.5,2423.2,4.16792145]
[1726358498005,1.76833341,2423.4,2423.3,2.37604678]
[1726358498764,1.76833341,2423.4,2423.3,3.24264823]
[1726358498968,1.76833341,2423.4,2423.3,4.48884101]
[1726358499325,1.76833341,2423.4,2423.3,4.11337965]
[1726358503565,1.76833341,2423.4,2423.3,3.2467782]
[1726358504365,1.76833341,2423.4,2423.3,3.2465141]
[1726358504772,1.76833341,2423.4,2423.3,4.11311555]
[1726358505132,1.76833341,2423.4,2423.3,3.2465141]
[1726358509137,1.76833341,2423.4,2423.3,2.29634616]
[1726358509343,1.76833341,2423.4,2423.3,3.24660417]
[1726358514165,1.76833341,2423.4,2423.3,2.37562585]
[1726358516604,1.76833341,2423.4,2423.3,2.37566441]
[1726358519067,1.76833341,2423.4,2423.3,2.37579603]
[1726358520215,1.76833341,2423.4,2423.3,0.95031841]
[1726358520404,2.3291,2423.3,2423.1,0.86660145]
[1726358520604,1.76833341,2423.2,2423.1,0.86660145]
[1726358520908,1.76833341,2423.2,2423.1,3.24295717]
[1726358521574,1.76833341,2423.2,2423.1,3.61813159]
[1726358521880,1.76833341,2423.2,2423.1,3.24295717]
[1726358522718,1.76833341,2423.2,2423.1,2.3760674]
[1726358525477,1.76833341,2423.4,2423.1,6.79223355]
[1726358525718,1.76833341,2423.4,2423.2,2.37513619]
[1726358526029,1.76833341,2423.4,2423.1,4.16814145]
[1726358526223,1.76833341,2423.4,2423.2,2.37442695]
[1726358526420,1.76833341,2423.4,2423.1,0.86660145]
[1726358526607,1.76833341,2423.4,2423.2,2.37437166]
[1726358526781,1.76833341,2423.4,2423.1,0.86660145]
[1726358527116,1.76833341,2423.4,2423.2,2.37437581]
[1726358527318,1.76833341,2423.4,2423.1,2.15116078]
[1726358527621,1.76833341,2423.4,2423.2,2.37432538]
[1726358527824,1.76833341,2423.4,2423.1,1.28455933]
[1726358528026,1.76833341,2423.4,2423.2,0.94977103]
[1726358528208,1.76833341,2423.4,2423.1,1.28455933]
[1726358528416,1.76833341,2423.4,2423.2,0.94971965]
[1726358528583,1.76833341,2423.4,2423.0,9.81121145]
[1726358528904,1.76833341,2423.4,2423.1,3.48544761]
[1726358529110,1.76833341,2423.4,2423.2,0.94971568]
[1726358529293,1.76833341,2423.4,2423.1,1.11115841]
[1726358529494,1.76833341,2423.4,2423.2,0.94948729]
[1726358529705,1.76833341,2423.4,2423.1,1.11115841]
[1726358529921,1.76833341,2423.4,2423.2,0.94946978]
[1726358530085,1.76833341,2423.4,2423.1,1.11115841]
[1726358530285,1.76833341,2423.4,2423.2,0.94945247]
[1726358530525,1.76833341,2423.4,2423.0,9.81121145]
[1726358530689,1.76833341,2423.4,2423.1,3.48474547]
[1726358531016,1.76833341,2423.4,2423.2,0.94943482]
[1726358531219,1.76833341,2423.4,2423.1,1.11115841]
[1726358531520,1.76833341,2423.4,2423.2,0.94941234]
[1726358531732,1.76833341,2423.4,2423.1,1.11115841]
[1726358531910,1.76833341,2423.4,2423.2,0.94943624]
[1726358532110,1.76833341,2423.4,2423.1,1.11115841]
[1726358532310,1.76833341,2423.4,2423.2,0.94943784]
[1726358532606,1.76833341,2423.4,2423.1,1.11115841]
[1726358532811,1.76833341,2423.4,2423.2,0.9493832]
[1726358533011,1.76833341,2423.4,2423.1,1.11115841]
[1726358533213,1.76833341,2423.4,2423.2,0.94939489]
[1726358533427,1.76833341,2423.4,2423.1,4.41266841]
[1726358533723,1.76833341,2423.4,2423.2,2.04161778]
[1726358533896,1.76833341,2423.4,2423.1,3.30151]
[1726358534099,1.76833341,2423.4,2423.2,0.94937045]
[1726358534298,1.76833341,2423.4,2423.1,3.30151]
[1726358534499,1.76833341,2423.4,2423.2,0.94935918]
[1726358534715,1.76833341,2423.4,2423.1,3.30151]
[1726358535027,1.76833341,2423.4,2423.2,0.9493665]
[1726358535332,1.76833341,2423.4,2423.1,4.41265841]
[1726358535507,1.76833341,2423.4,2423.2,0.94936137]
[1726358535826,1.76833341,2423.4,2423.1,4.41265841]
[1726358536025,1.76833341,2423.4,2423.2,0.94940201]
[1726358536228,1.76833341,2423.4,2423.1,4.41265841]
[1726358536431,1.76833341,2423.4,2423.2,0.94939172]
[1726358536588,1.76833341,2423.4,2423.1,4.41265841]
[1726358536914,1.76833341,2423.4,2423.2,0.94943951]
[1726358537089,1.76833341,2423.4,2423.1,4.41265841]
[1726358537502,1.76833341,2423.4,2423.2,0.94942937]
[1726358537791,1.76833341,2423.4,2423.1,4.41265841]
[1726358538191,1.76833341,2423.4,2423.2,0.94949283]
[1726358538430,1.76833341,2423.4,2423.1,3.30151]
[1726358538730,1.76833341,2423.4,2423.2,0.94951569]
[1726358538932,1.76833341,2423.4,2423.1,3.30151]
[1726358539134,1.76833341,2423.4,2423.2,0.94951631]
[1726358539347,1.76833341,2423.4,2423.1,3.30151]
[1726358539632,1.76833341,2423.4,2423.2,0.94952234]
[1726358539834,1.76833341,2423.4,2423.1,3.30151]
[1726358540017,1.76833341,2423.4,2423.2,0.94955347]
[1726358540223,1.76833341,2423.4,2423.1,3.30151]
[1726358540384,1.76833341,2423.4,2423.2,0.9495525]
[1726358540586,1.76833341,2423.4,2423.1,3.30151]
[1726358540826,2.2843,2423.4,2423.2,0.94959066]
[1726358541032,1.76833341,2423.2,2423.0,4.16820145]
[1726358541220,1.76833341,2423.2,2423.1,2.37407328]
[1726358542302,1.76833341,2423.2,2423.1,2.37414802]
[1726358545635,1.76833341,2423.2,2423.1,0.94965921]
[1726358548699,1.76833341,2423.2,2423.1,2.37419214]
[1726358549036,4.05263341,2423.2,2422.8,0.86660145]
[1726358549198,2.2843,2423.2,2422.9,2.37461457]
[1726358549400,2.2843,2423.2,2422.7,11.51859145]
[1726358549401,1.76833341,2423.0,2422.7,11.51859145]
[1726358549636,1.76833341,2423.0,2422.8,2.3744998]
[1726358549802,1.76833341,2423.0,2422.9,0.94979992]
[1726358550504,4.05263341,2423.0,2422.9,0.94979992]
[1726358551226,4.05263341,2423.0,2422.7,13.53323178]
[1726358551440,4.05263341,2423.0,2422.8,2.37399426]
[1726358551631,4.05263341,2423.0,2422.7,7.35]
[1726358551795,1.76833341,2422.8,2422.7,7.35]
[1726358551999,1.76833341,2422.8,2422.7,10.59074751]
[1726358552235,1.76833341,2422.8,2422.7,10.59068798]
[1726358553212,1.76833341,2422.8,2422.7,0.94963461]
[1726358553213,4.05263341,2422.8,2422.7,0.94963461]
[1726358553412,4.05263341,2422.8,2422.4,8.03535287]
[1726358553741,4.05263341,2422.8,2422.5,4.06429682]
[1726358554050,4.05263341,2422.8,2422.6,2.37410185]
[1726358554339,4.05263341,2422.8,2422.4,4.16901145]
[1726358554542,1.76833341,2422.6,2422.5,2.37371428]
[1726358554719,1.76833341,2422.6,2422.5,0.94948571]
[1726358556967,1.76833341,2422.6,2422.4,3.30241]
[1726358557119,1.76833341,2422.6,2422.3,0.86660145]
[1726358557322,2.2843,2422.8,2422.2,9.76327145]
[1726358557323,1.76833341,2422.4,2422.2,9.76327145]
[1726358557515,1.76833341,2422.4,2422.3,2.37266625]
[1726358559309,1.76833341,2422.4,2422.3,0.9490665]
[1726358559948,1.76833341,2422.4,2422.3,0.94876693]
[1726358560152,1.76833341,2422.4,2422.3,0.94876388]
[1726358560440,1.76833341,2422.4,2422.2,10.1659539]
[1726358560742,1.76833341,2422.4,2422.2,4.5719539]
[1726358561251,2.4034,2422.3,2422.0,7.47247145]
[1726358561425,1.76833341,2422.4,2422.1,5.67407496]
[1726358561748,1.76833341,2422.6,2422.3,2.3389]
[1726358565948,1.76833341,2422.4,2422.3,2.3389]
[1726358566811,5.70545,2422.8,2422.4,3.30247]
[1726358566812,1.76833341,2422.6,2422.4,3.30247]
[1726358567153,1.76833341,2422.8,2422.5,3.30224]
[1726358567337,1.76833341,2422.8,2422.5,4.26723529]
[1726358569061,1.76833341,2422.8,2422.6,2.2769]
[1726358569214,1.76833341,2423.0,2422.7,3.30201]
[1726358569549,1.76833341,2423.0,2422.7,4.04719628]
[1726358569957,1.76833341,2423.0,2422.7,7.34921628]
[1726358570174,1.76833341,2423.0,2422.7,4.04719628]
[1726358570943,1.76833341,2423.0,2422.7,7.34921628]
[1726358571470,1.76833341,2423.0,2422.9,3.30182]
[1726358571674,1.76833341,2423.2,2423.0,3.30169]
[1726358572053,1.76833341,2423.2,2422.9,5.57872]
[1726358572341,1.76833341,2423.2,2422.9,8.88038]
[1726358572582,1.76833341,2423.2,2422.9,5.57864]
[1726358573985,1.76833341,2423.0,2422.9,5.57864]
[1726358579059,1.76833341,2423.0,2422.9,3.30174]
[1726358583188,1.76833341,2423.0,2422.8,1.42179788]
[1726358583483,1.76833341,2423.0,2422.7,6.42967145]
[1726358583643,1.76833341,2423.0,2422.8,5.67160807]
[1726358583847,1.76833341,2423.0,2422.8,3.30189]
[1726358584047,1.76833341,2423.0,2422.7,5.56307]
[1726358584360,1.76833341,2423.0,2422.8,0.94794967]
[1726358584685,1.76833341,2423.0,2422.7,9.82767274]
[1726358584985,1.76833341,2423.0,2422.8,0.94799449]
[1726358585146,1.76833341,2423.0,2422.7,9.82767274]
[1726358585346,1.76833341,2423.0,2422.8,0.94801582]
[1726358585571,1.76833341,2423.0,2422.7,7.39226419]
[1726358585749,1.76833341,2423.0,2422.8,3.43941277]
[1726358585947,1.76833341,2423.0,2422.8,1.06942742]
[1726358586683,2.4066,2423.1,2422.8,1.06942742]
[1726358586984,2.4066,2423.1,2422.8,4.37133742]
[1726358587758,2.4066,2423.1,2422.9,0.94796435]
[1726358587983,2.4066,2423.1,2422.8,4.37133742]
[1726358588171,2.4066,2423.1,2422.9,0.94795282]
[1726358588376,2.4066,2423.1,2422.8,4.37133742]
[1726358588581,2.4066,2423.1,2422.9,0.94796404]
[1726358588788,2.4066,2423.1,2422.8,4.37133742]
[1726358588949,2.4066,2423.1,2422.9,0.94798329]
[1726358589285,2.4066,2423.1,2422.8,4.37133742]
[1726358589474,2.4066,2423.1,2422.9,0.94799468]
[1726358589780,2.4066,2423.1,2422.8,4.37133742]
[1726358589950,2.4066,2423.1,2422.9,0.94801522]
[1726358590150,2.4066,2423.1,2422.8,4.37133742]
[1726358590350,2.4066,2423.1,2422.9,0.94802245]
[1726358590565,2.4066,2423.1,2422.8,3.30191]
[1726358590764,2.4066,2423.1,2422.7,0.86660145]
[1726358590995,1.76833341,2423.0,2422.8,2.37022102]
[1726358591158,1.76833341,2423.0,2422.7,3.30207]
[1726358591347,1.76833341,2423.2,2422.9,3.30182]
[1726358591849,2.4066,2423.3,2422.9,3.30182]
[1726358592278,4.17493341,2423.3,2422.9,3.30182]
[1726358605916,1.76833341,2423.1,2422.9,3.30182]
[1726358606478,1.76833341,2423.1,2423.0,0.94875543]
[1726358608535,1.76833341,2423.1,2423.0,2.37245938]
[1726358609100,1.76833341,2423.1,2423.0,2.37241593]
[1726358609435,1.76833341,2423.1,2423.0,2.3730961]
[1726358612312,1.76833341,2423.1,2423.0,3.23969755]
[1726358614435,1.76833341,2423.1,2423.0,2.37665868]
[1726358615100,1.76833341,2423.1,2423.0,3.31571399]
[1726358615317,1.76833341,2423.1,2423.0,6.51763501]
[1726358615924,1.76833341,2423.1,2423.0,5.5785797]
[1726358616267,1.76833341,2423.1,2423.0,6.51764798]
[1726358616974,1.76833341,2423.1,2423.0,6.51765514]
[1726358617455,4.17493341,2423.3,2423.0,6.51765514]
[1726358617662,4.17493341,2423.3,2423.1,3.61974601]
[1726358617957,4.17493341,2423.3,2423.2,2.37665868]
[1726358619131,4.17493341,2423.3,2423.2,2.37735572]
[1726358624160,4.17493341,2423.3,2423.2,2.37739566]
[1726358624839,4.17493341,2423.3,2423.2,2.37745875]
[1726358634109,4.17493341,2423.3,2423.2,2.37799795]
[1726358641405,1.73455735,2423.6,2423.3,2.3414]
[1726358641653,5.03516735,2423.8,2423.4,2.37767768]
[1726358641940,1.76833341,2423.7,2423.5,0.95112906]
[1726358642142,1.76833341,2423.7,2423.6,2.37714313]
[1726358642701,7.32108735,2423.9,2423.6,2.37714313]
[1726358642702,1.76833341,2423.9,2423.6,2.37714313]
[1726358642951,1.76833341,2423.9,2423.7,4.71866296]
[1726358643111,1.76833341,2423.9,2423.7,2.3414]
[1726358643451,1.73455735,2424.1,2423.7,2.3414]
[1726358643602,3.50289076,2424.1,2423.7,2.3414]
[1726358643806,3.50289076,2424.1,2423.8,0.95087036]
[1726358644037,3.50289076,2424.1,2423.7,2.3414]
[1726358644249,1.73455735,2424.1,2423.8,0.95090175]
[1726358644545,1.76833341,2424.2,2423.9,2.37692929]
[1726358644722,1.76833341,2424.2,2424.0,0.9507105]
[1726358645046,1.76833341,2424.2,2423.8,4.16850134]
[1726358645253,1.76833341,2424.2,2423.9,2.37663568]
[1726358645458,1.76833341,2424.2,2424.0,0.95065427]
[1726358645764,1.76833341,2424.2,2423.8,4.16850134]
[1726358646060,1.76833341,2424.2,2423.9,3.6194553]
[1726358646213,1.76833341,2424.2,2424.0,2.37663761]
[1726358646415,1.76833341,2424.2,2423.9,0.86794134]
[1726358646645,0.55,2424.2,2424.0,2.37659783]
[1726358646850,1.76833341,2424.0,2423.9,0.86794134]
[1726358647056,1.76833341,2424.0,2423.9,2.37677886]
[1726358647365,1.76833341,2424.0,2423.9,0.95071154]
[1726358647527,1.76833341,2424.0,2423.9,2.37674627]
[1726358647867,1.76833341,2424.0,2423.9,2.37675125]
[1726358648016,1.76833341,2424.0,2423.7,2.3414]
[1726358648223,1.76833341,2424.0,2423.8,0.94962007]
[1726358648518,1.76833341,2424.0,2423.7,2.3414]
[1726358648717,1.76833341,2424.0,2423.8,0.94957272]
[1726358648920,1.76833341,2423.9,2423.7,2.3414]
[1726358649163,1.76833341,2423.9,2423.6,3.30075]
[1726358649318,1.76833341,2423.7,2423.6,4.16869134]
[1726358649520,1.76833341,2423.7,2423.6,6.54226032]
[1726358649716,1.76833341,2423.7,2423.6,5.67431898]
[1726358649928,1.76833341,2423.7,2423.6,6.04914227]
[1726358650266,1.76833341,2423.7,2423.6,0.94942759]
[1726358650422,1.76833341,2423.7,2423.6,2.37281557]
[1726358651467,1.76833341,2423.7,2423.6,2.36975197]
[1726358651822,1.76833341,2423.7,2423.6,0.94942759]
[1726358652263,1.76833341,2423.7,2423.6,0.94691027]
[1726358653669,1.76833341,2423.7,2423.5,5.6424]
[1726358654038,1.76833341,2423.7,2423.6,0.94646667]
[1726358654345,1.76833341,2423.7,2423.5,5.6424]
[1726358657671,1.76833341,2423.9,2423.5,5.6424]
[1726358664367,1.76833341,2423.9,2423.6,3.30085]
[1726358678779,1.76833341,2423.9,2423.7,0.94651027]
[1726358679129,1.76833341,2423.9,2423.6,3.30085]
[1726358679805,1.76833341,2423.9,2423.7,0.94673233]
[1726358679946,1.76833341,2423.9,2423.6,3.30085]
[1726358680294,1.76833341,2423.9,2423.7,3.28812492]
[1726358680448,1.76833341,2423.9,2423.7,2.3414]
[1726358682676,1.76833341,2423.9,2423.8,0.94776372]
[1726358683304,1.76833341,2423.9,2423.8,0.94778168]
[1726358683474,1.76833341,2423.9,2423.7,2.3414]
[1726358683673,1.76833341,2423.9,2423.8,2.371607]
[1726358685608,0.55,2424.0,2423.8,2.371607]
[1726358685816,2.31833341,2424.0,2423.9,0.9486428]
[1726358686011,2.31833341,2424.0,2423.7,3.20934134]
[1726358686316,2.31833341,2424.0,2423.8,2.37138619]
[1726358686477,2.31833341,2424.0,2423.7,3.20934134]
[1726358686676,2.31833341,2424.0,2423.8,2.37144572]
[1726358686911,1.76833341,2424.0,2423.9,0.94853841]
[1726358687126,1.76833341,2424.0,2423.9,2.37128422]
[1726358687415,1.76833341,2424.0,2423.9,0.94853841]
[1726358687716,1.76833341,2424.0,2423.9,2.37125033]
[1726358690071,4.20185735,2424.3,2423.9,5.67171033]
[1726358690300,6.54217146,2424.5,2424.1,2.3414]
[1726358690521,1.80761411,2424.5,2424.2,0.94782833]
[1726358690836,0.0392807,2424.5,2424.1,2.3414]
[1726358691127,1.76833341,2424.4,2424.2,0.94782478]
[1726358691329,1.76833341,2424.4,2424.1,2.3414]
[1726358691629,1.76833341,2424.4,2424.2,0.94752069]
[1726358691838,1.76833341,2424.4,2424.1,5.64158]
[1726358691991,1.76833341,2424.4,2424.2,0.94751962]
[1726358692196,1.76833341,2424.4,2424.1,5.64158]
[1726358694336,1.76914178,2424.4,2424.1,5.64158]
[1726358695241,1.76914178,2424.4,2424.1,2.3414]
[1726358695942,1.76833341,2424.2,2424.1,2.3414]
[1726358696133,1.76833341,2424.2,2424.1,3.28833238]
[1726358696445,1.76833341,2424.2,2424.1,3.28832838]
[1726358697447,1.76833341,2424.2,2424.1,3.28815682]
[1726358697936,1.76833341,2424.2,2424.1,2.3414]
[1726358702640,0.00080837,2424.4,2424.2,3.29993]
[1726358702941,0.00080837,2424.4,2424.3,2.3223]
[1726358704531,0.00080837,2424.4,2424.2,3.30003]
[1726358704735,1.76833341,2424.3,2424.2,3.30003]
[1726358705722,1.76833341,2424.3,2424.2,4.27907513]
[1726358706627,0.00080837,2424.4,2424.2,4.27907513]
[1726358709425,0.00080837,2424.4,2424.2,3.30003]
[1726358712939,0.00080837,2424.4,2424.1,5.62248]
[1726358713243,1.76833341,2424.3,2424.1,5.62248]
[1726358713830,1.76833341,2424.3,2424.1,5.62241]
[1726358716567,1.76833341,2424.3,2424.0,1.41869314]
[1726358716730,1.76833341,2424.3,2423.9,7.50036777]
[1726358716930,1.76833341,2424.3,2424.0,2.36452758]
[1726358717227,1.76833341,2424.3,2423.9,7.50036777]
[1726358717429,1.76833341,2424.3,2424.0,2.36458631]
[1726358717629,1.76833341,2424.3,2423.9,7.50036777]
[1726358717848,1.76833341,2424.3,2424.0,2.36466228]
[1726358718053,1.76833341,2424.3,2424.0,3.30032]
[1726358723372,1.76833341,2424.3,2424.1,0.94600087]
[1726358723575,1.76833341,2424.3,2424.0,3.30032]
[1726358723755,1.76833341,2424.3,2424.1,0.94605781]
[1726358724078,1.76833341,2424.3,2424.0,3.30032]
[1726358724278,1.76833341,2424.3,2424.1,0.94605326]
[1726358724489,1.76833341,2424.3,2424.0,3.30032]
[1726358724640,1.76833341,2424.3,2424.1,0.94610918]
[1726358724841,1.76833341,2424.3,2424.0,3.30032]
[1726358725154,1.76833341,2424.3,2424.1,0.94610791]
[1726358725463,1.76833341,2424.3,2424.0,3.30032]
[1726358725665,1.76833341,2424.3,2424.1,0.94617593]
[1726358725845,1.71833341,2424.3,2424.0,3.30032]
[1726358726040,1.71833341,2424.3,2424.1,0.94618069]
[1726358726255,1.71833341,2424.3,2424.0,4.69968618]
[1726358726445,1.71833341,2424.3,2424.1,0.94622208]
[1726358726675,1.71833341,2424.3,2424.0,4.69968618]
[1726358726869,1.71833341,2424.3,2424.1,0.9462374]
[1726358727082,1.71833341,2424.3,2424.0,5.56762752]
[1726358727243,1.71833341,2424.3,2424.1,2.36558048]
[1726358727443,1.71833341,2424.3,2424.0,5.56762752]
[1726358727655,1.71833341,2424.3,2424.1,2.36578301]
[1726358727853,1.71833341,2424.3,2424.0,5.56762752]
[1726358728080,1.71833341,2424.3,2424.1,2.36578365]
[1726358728240,1.71833341,2424.3,2424.0,4.16826134]
[1726358728442,1.71833341,2424.3,2424.1,2.3659555]
[1726358728640,1.71833341,2424.3,2424.0,4.16826134]
[1726358728878,1.71833341,2424.3,2424.1,2.36602078]
[1726358729076,1.71833341,2424.3,2424.0,4.16826134]
[1726358729296,1.71833341,2424.3,2424.1,2.36603115]
[1726358729574,1.71833341,2424.3,2424.1,3.30019]
[1726358729878,0.00080837,2424.4,2424.3,3.29992]
[1726358730743,0.00080837,2424.4,2424.3,4.24630686]
[1726358730981,0.00080837,2424.4,2424.3,3.29992]
[1726358731778,0.00080837,2424.4,2424.3,3.40609858]
[1726358734069,0.00080837,2424.4,2424.3,4.35275562]
[1726358734462,0.00080837,2424.4,2424.3,5.7729852]
[1726358737753,0.00080837,2424.4,2424.3,2.4730652]
[1726358738786,0.00080837,2424.4,2424.3,2.47393705]
[1726358740090,1.76914178,2424.4,2424.3,2.47393705]
[1726358741309,0.00080837,2424.4,2424.3,2.47393705]
[1726358741472,1.76914178,2424.4,2424.3,2.47393705]
[1726358743612,1.76914178,2424.4,2424.3,2.47423708]
[1726358744316,4.14024178,2424.4,2424.3,2.47423708]
[1726358744507,4.14024178,2424.4,2424.3,1.05340198]
[1726358745012,4.14024178,2424.4,2424.3,0.10617858]
[1726358745534,4.55819403,2424.4,2424.3,1.05352006]
[1726358748599,4.55819403,2424.4,2424.3,0.10617858]
[1726358754297,4.14024626,2424.4,2424.3,0.10617858]
[1726358759638,0.00081285,2424.4,2424.3,0.10617858]
[1726358760725,0.00081285,2424.4,2424.3,3.40609858]
[1726358762532,0.00081285,2424.4,2424.3,5.77400248]